bitfinex/quotes_BTCUSD_20241229
["timestamp","ask_amount","ask_price","bid_price","bid_amount"]
[1735497742770,3.36096582,93904.0,93903.0,0.0001706]
[1735497742968,3.46296582,93904.0,93903.0,0.0001706]
[1735497743182,3.56296582,93904.0,93903.0,0.0001706]
[1735497743395,3.56696582,93904.0,93903.0,0.0001706]
[1735497743617,3.57253707,93904.0,93903.0,0.0001706]
[1735497744053,3.56853707,93904.0,93903.0,0.0001706]
[1735497744475,3.57253707,93904.0,93903.0,0.0001706]
[1735497744923,3.56853707,93904.0,93903.0,0.0001706]
[1735497745413,3.57053707,93904.0,93903.0,0.0001706]
[1735497746028,3.57453707,93904.0,93903.0,0.0001706]
[1735497746233,3.57053707,93904.0,93903.0,0.0001706]
[1735497746601,3.57653707,93904.0,93903.0,0.0001706]
[1735497748198,3.70863707,93904.0,93903.0,0.0001706]
[1735497748379,0.2,93875.0,93874.0,0.0001706]
[1735497748529,4.403849,93875.0,93874.0,0.0001706]
[1735497748713,4.40943074,93875.0,93874.0,0.0001706]
[1735497748913,4.42947925,93875.0,93874.0,0.0001706]
[1735497749565,4.42953012,93875.0,93874.0,0.0001706]
[1735497749758,4.43353012,93875.0,93874.0,0.0001706]
[1735497750062,4.42953012,93875.0,93874.0,0.0001706]
[1735497750441,4.43353012,93875.0,93874.0,0.0011706]
[1735497750644,2.41168112,93875.0,93874.0,0.0011706]
[1735497750847,2.40768112,93875.0,93874.0,0.0001706]
[1735497751050,2.40768112,93875.0,93874.0,0.0782706]
[1735497751263,2.39263261,93875.0,93874.0,0.0782706]
[1735497751469,2.39263261,93875.0,93874.0,0.1235706]
[1735497751851,2.38763261,93875.0,93874.0,0.1235706]
[1735497752773,2.39363261,93875.0,93874.0,0.1245706]
[1735497752976,2.38763261,93875.0,93874.0,0.1235706]
[1735497753328,2.38763261,93875.0,93874.0,0.1255706]
[1735497753945,2.38763261,93875.0,93848.0,0.07717831]
[1735497753946,0.1,93865.0,93848.0,0.07717831]
[1735497754166,0.26248072,93858.0,93848.0,0.07717831]
[1735497754365,3.87309137,93857.0,93848.0,0.07717831]
[1735497754568,3.873092,93856.0,93848.0,0.07717831]
[1735497754767,3.873092,93855.0,93848.0,0.07717831]
[1735497754944,3.873092,93854.0,93848.0,0.07717831]
[1735497755146,0.26248072,93858.0,93848.0,0.07717831]
[1735497755147,3.873092,93853.0,93848.0,0.07717831]
[1735497755441,3.873092,93853.0,93849.0,0.05754783]
[1735497755442,3.873092,93852.0,93849.0,0.05754783]
[1735497755642,3.873092,93852.0,93824.0,8.53e-05]
[1735497755643,2.879,93851.0,93825.0,0.0453]
[1735497755821,2.879,93851.0,93824.0,0.1000853]
[1735497755822,3.005,93850.0,93849.0,0.0453]
[1735497755958,2.944,93850.0,93849.0,0.0453]
[1735497756167,2.94946903,93850.0,93849.0,0.0453]
[1735497756369,0.95046903,93850.0,93849.0,0.0453]
[1735497756973,0.95046903,93850.0,93849.0,0.1234]
[1735497757260,0.63446903,93850.0,93849.0,0.1234]
[1735497757460,0.63546903,93850.0,93849.0,0.1324]
[1735497757813,0.63546903,93850.0,93849.0,0.1364]
[1735497758222,0.63546903,93850.0,93849.0,0.1324]
[1735497758672,0.63546903,93850.0,93849.0,0.1375706]
[1735497763656,0.00646903,93850.0,93849.0,0.15132766]
[1735497763866,0.001,93851.0,93849.0,0.15132766]
[1735497763867,0.001,93851.0,93850.0,0.1313]
[1735497764617,0.13124036,93859.0,93850.0,0.23528632]
[1735497764801,0.13124036,93859.0,93852.0,0.0498]
[1735497765007,0.13124036,93859.0,93856.0,0.0498]
[1735497765233,0.13124036,93859.0,93855.0,0.0815]
[1735497765234,0.09538469,93868.0,93861.0,0.0801]
[1735497765409,0.968,93867.0,93863.0,0.0801]
[1735497766573,2.844,93869.0,93863.0,0.0791]
[1735497766759,2.992,93869.0,93863.0,0.0791]
[1735497767241,2.816,93868.0,93863.0,0.0841]
[1735497767466,2.828,93869.0,93863.0,0.0791]
[1735497767845,1.758,93869.0,93863.0,0.0831]
[1735497768211,0.961,93869.0,93864.0,0.01525286]
[1735497768328,0.952,93869.0,93864.0,0.01525286]
[1735497770282,0.952,93869.0,93864.0,0.01825286]
[1735497770429,1.187,93868.0,93864.0,0.01825286]
[1735497770641,1.209,93869.0,93864.0,0.003]
[1735497770808,1.189,93869.0,93864.0,0.003]
[1735497771207,1.195,93869.0,93864.0,0.003]
[1735497771962,1.195,93869.0,93864.0,0.004]
[1735497772831,1.058,93869.0,93864.0,0.004]
[1735497772963,1.058,93869.0,93865.0,0.01291706]
[1735497773184,0.432,93869.0,93866.0,0.0801]
[1735497773393,0.22662505,93876.0,93868.0,0.0801]
[1735497773589,0.22662505,93876.0,93869.0,0.14988632]
[1735497773795,0.22662505,93876.0,93871.0,0.126]
[1735497774021,0.22662505,93876.0,93873.0,0.126]
[1735497774363,0.09538469,93876.0,93874.0,0.22998632]
[1735497775207,0.13124036,93883.0,93874.0,0.22998632]
[1735497776711,0.13124036,93883.0,93874.0,0.23198632]
[1735497777571,0.13124036,93883.0,93874.0,0.24098632]
[1735497777920,0.13124036,93883.0,93874.0,0.23198632]
[1735497778126,0.13124036,93883.0,93874.0,0.25761399]
[1735497778377,0.13124036,93883.0,93874.0,0.26661399]
[1735497779136,0.13124036,93883.0,93874.0,0.26461399]
[1735497779539,0.13124036,93883.0,93874.0,0.26961399]
[1735497780360,0.13124036,93883.0,93874.0,0.26461399]
[1735497782353,0.13124036,93883.0,93874.0,0.23898632]
[1735497782836,0.00105087,93875.0,93874.0,0.24498632]
[1735497783008,0.00113617,93875.0,93874.0,0.24498632]
[1735497784508,0.00113617,93875.0,93874.0,0.141]
[1735497787414,0.00013617,93875.0,93874.0,0.135]
[1735497787779,0.00013617,93875.0,93874.0,0.126]
[1735497787982,0.00113617,93875.0,93874.0,0.132]
[1735497788190,0.00113617,93875.0,93874.0,0.141]
[1735497788400,0.00113617,93875.0,93874.0,0.132]
[1735497788790,0.00113617,93875.0,93874.0,0.141]
[1735497789191,0.00113617,93875.0,93874.0,0.132]
[1735497789390,0.00113617,93875.0,93874.0,0.141]
[1735497789621,0.13124036,93884.0,93874.0,0.1551]
[1735497789826,0.13124036,93884.0,93874.0,0.15525285]
[1735497789982,0.00477719,93883.0,93874.0,0.14925285]
[1735497790314,0.13124036,93884.0,93874.0,0.15525285]
[1735497790534,0.13124036,93884.0,93874.0,0.25923917]
[1735497790664,0.13124036,93884.0,93876.0,0.0786]
[1735497790862,0.13124036,93884.0,93878.0,0.0786]
[1735497791073,0.13124036,93884.0,93879.0,0.18258632]
[1735497791850,0.13124036,93890.0,93882.0,0.0819]
[1735497792050,0.13124036,93890.0,93883.0,0.14908632]
[1735497792251,0.00478258,93889.0,93884.0,0.02490863]
[1735497792461,0.13124036,93890.0,93885.0,0.18588632]
[1735497792840,0.14209562,93900.0,93885.0,0.18588632]
[1735497793203,0.00478258,93899.0,93885.0,0.18588632]
[1735497793795,0.00478258,93899.0,93885.0,0.19088632]
[1735497794006,0.00478258,93899.0,93886.0,0.03698949]
[1735497794202,0.00478258,93899.0,93887.0,0.10398632]
[1735497794538,0.00478258,93899.0,93888.0,0.0819]
[1735497794699,0.00478258,93899.0,93889.0,0.10398632]
[1735497795446,0.14209562,93900.0,93889.0,0.10398632]
[1735497795667,0.13124036,93900.0,93891.0,0.0819]
[1735497795843,0.13124036,93900.0,93893.0,0.0819]
[1735497795980,0.00482266,93899.0,93894.0,0.10398632]
[1735497798791,0.00482266,93899.0,93894.0,0.11298632]
[1735497799294,0.00482266,93899.0,93894.0,0.11598632]
[1735497799548,0.00482266,93899.0,93895.0,0.02752534]
[1735497799715,0.00482266,93899.0,93896.0,0.10398632]
[1735497799925,0.00482266,93899.0,93897.0,0.0819]
[1735497800147,0.00482266,93899.0,93898.0,0.10398632]
[1735497800348,8.53e-05,93904.0,93898.0,0.10398632]
[1735497800481,8.53e-05,93904.0,93899.0,0.02705117]
[1735497800686,0.00482266,93902.0,93899.0,0.13103749]
[1735497802167,0.00482266,93902.0,93900.0,0.10398632]
[1735497804023,0.00482266,93902.0,93900.0,0.10698632]
[1735497804794,0.00482266,93902.0,93900.0,0.11598632]
[1735497805018,0.00482266,93902.0,93901.0,0.02524628]
[1735497805225,0.00482266,93902.0,93901.0,0.1292326]
[1735497806388,0.00482266,93902.0,93901.0,0.1412326]
[1735497806945,0.00490796,93902.0,93901.0,0.1412326]
[1735497807152,0.00490796,93902.0,93901.0,0.11598632]
[1735497807561,0.00490796,93902.0,93901.0,0.012]
[1735497813485,0.00490796,93902.0,93901.0,0.11598632]
[1735497820026,0.00490796,93902.0,93901.0,0.23778632]
[1735497820227,8.53e-05,93902.0,93901.0,0.33778632]
[1735497820526,8.53e-05,93902.0,93901.0,0.38484231]
[1735497821106,0.13124036,93920.0,93907.0,0.0754]
[1735497821313,0.13124036,93920.0,93908.0,0.10398632]
[1735497821459,0.00493093,93919.0,93908.0,0.10398632]
[1735497821662,0.13124036,93920.0,93908.0,0.10398632]
[1735497821866,0.13124036,93920.0,93909.0,0.02793863]
[1735497822096,0.13124036,93920.0,93909.0,0.10398632]
[1735497822272,1.502,93919.0,93901.0,0.1267]
[1735497822504,0.13124036,93911.0,93908.0,0.002]
[1735497822704,0.15289937,93918.0,93908.0,0.002]
[1735497822883,0.00495997,93910.0,93902.0,0.10398632]
[1735497823066,0.14794353,93918.0,93903.0,0.02357639]
[1735497823267,3.092,93917.0,93909.0,0.001]
[1735497823520,3.06194751,93917.0,93909.0,0.001]
[1735497823723,2.819,93916.0,93909.0,0.001]
[1735497823926,3.182,93915.0,93909.0,0.001]
[1735497824128,3.183,93916.0,93909.0,0.001]
[1735497824380,0.13124036,93918.0,93909.0,0.001]
[1735497824381,3.428,93917.0,93909.0,0.001]
[1735497824535,3.176,93915.0,93909.0,0.001]
[1735497824740,0.00494751,93916.0,93909.0,0.001]
[1735497824939,2.794,93915.0,93909.0,0.001]
[1735497825145,2.794,93915.0,93904.0,0.10398632]
[1735497825146,0.00494751,93915.0,93904.0,0.10398632]
[1735497825465,2.556,93914.0,93909.0,0.003]
[1735497825662,2.018,93913.0,93909.0,0.003]
[1735497825970,0.00494751,93912.0,93904.0,0.10398632]
[1735497826150,0.13124036,93918.0,93910.0,0.01069863]
[1735497826347,0.20389066,93917.0,93910.0,0.01069863]
[1735497826527,0.00489066,93917.0,93910.0,0.01069863]
[1735497827149,0.01670354,93916.0,93910.0,0.01069863]
[1735497827365,0.86,93915.0,93911.0,0.0118685]
[1735497827679,0.00489066,93914.0,93911.0,0.0118685]
[1735497827832,0.38689066,93914.0,93911.0,0.0118685]
[1735497828051,0.38,93913.0,93911.0,0.0118685]
[1735497828499,0.00490957,93912.0,93911.0,0.0118685]
[1735497828659,0.38390957,93912.0,93911.0,0.0118685]
[1735497828863,0.12196478,93912.0,93911.0,0.0118685]
[1735497829064,0.877,93917.0,93911.0,0.0188685]
[1735497829265,0.614,93917.0,93911.0,0.0118685]
[1735497829621,0.614,93917.0,93911.0,0.0208685]
[1735497829806,0.13124036,93918.0,93911.0,0.0208685]
[1735497830031,0.376,93917.0,93911.0,0.0118685]
[1735497831063,0.376,93917.0,93911.0,0.0138685]
[1735497831435,0.01670343,93916.0,93911.0,0.0228685]
[1735497831836,0.01670343,93916.0,93911.0,0.009]
[1735497832005,2.917,93915.0,93911.0,0.009]
[1735497832214,3.692957,93914.0,93911.0,0.012]
[1735497832424,3.616057,93913.0,93911.0,0.012]
[1735497832717,3.616057,93913.0,93911.0,0.003]
[1735497832931,3.616057,93913.0,93911.0,0.012]
[1735497833353,3.616057,93913.0,93911.0,0.003]
[1735497833556,3.616057,93913.0,93909.0,0.0001706]
[1735497833971,3.616057,93913.0,93911.0,0.004]
[1735497834329,3.616057,93913.0,93909.0,0.0001706]
[1735497834743,3.616057,93913.0,93911.0,0.006]
[1735497835365,3.466,93913.0,93909.0,0.0011706]
[1735497835603,3.466,93913.0,93909.0,0.0001706]
[1735497835604,3.46338469,93913.0,93909.0,0.0001706]
[1735497835804,0.09538469,93913.0,93911.0,0.006]
[1735497836306,0.09538469,93913.0,93910.0,0.0803]
[1735497836519,0.09538469,93913.0,93911.0,0.00804706]
[1735497836698,0.09538469,93913.0,93911.0,0.15248632]
[1735497836905,0.09538469,93918.0,93912.0,0.10398632]
[1735497837366,0.1120877,93918.0,93912.0,0.10398632]
[1735497838110,0.01670301,93918.0,93912.0,0.10698632]
[1735497838341,0.01670301,93918.0,93913.0,0.02419569]
[1735497838535,0.01670301,93918.0,93914.0,0.10398632]
[1735497839694,0.01670301,93918.0,93914.0,0.11298632]
[1735497840139,0.01670301,93918.0,93914.0,0.009]
[1735497840337,0.01670301,93918.0,93914.0,0.013]
[1735497840338,1.316,93917.0,93914.0,0.013]
[1735497841201,1.316,93917.0,93914.0,0.01834706]
[1735497841408,0.01670301,93918.0,93914.0,0.12233338]
[1735497841706,0.01670301,93918.0,93914.0,0.11333338]
[1735497841911,0.01670301,93918.0,93914.0,0.12633338]
[1735497842719,0.01670301,93918.0,93914.0,0.11733338]
[1735497842940,0.01670301,93918.0,93914.0,0.12633338]
[1735497843537,0.01670301,93918.0,93914.0,0.12233338]
[1735497843701,0.01670301,93918.0,93915.0,0.0206804]
[1735497844988,0.01670301,93918.0,93915.0,0.0336804]
[1735497846399,0.09538469,93921.0,93915.0,0.0336804]
[1735497847251,0.09538469,93921.0,93915.0,0.0296804]
[1735497847661,0.09538469,93921.0,93915.0,0.0336804]
[1735497848178,0.09538469,93921.0,93915.0,0.0246804]
[1735497848395,0.09538469,93921.0,93915.0,0.004]
[1735497849102,0.09538469,93921.0,93915.0,0.013]
[1735497849790,0.01670303,93919.0,93915.0,0.013]
[1735497850690,0.01670303,93919.0,93915.0,0.009]
[1735497851041,0.01670303,93919.0,93915.0,0.013]
[1735497851663,0.01670303,93919.0,93915.0,0.004]
[1735497851841,0.01670303,93919.0,93915.0,0.0246804]
[1735497852192,0.01670303,93919.0,93915.0,0.0336804]
[1735497854028,0.09538469,93922.0,93915.0,0.0336804]
[1735497854879,8.53e-05,93919.0,93915.0,0.0206804]
[1735497855109,8.53e-05,93919.0,93914.0,0.10398632]
[1735497855508,8.53e-05,93919.0,93915.0,0.009]
[1735497855707,8.53e-05,93919.0,93915.0,0.10505086]
[1735497855889,8.53e-05,93919.0,93916.0,0.125]
[1735497856111,8.53e-05,93919.0,93916.0,0.22898632]
[1735497856306,8.53e-05,93919.0,93917.0,0.02291569]
[1735497858254,8.53e-05,93919.0,93917.0,0.02691569]
[1735497859412,8.53e-05,93919.0,93917.0,0.004]
[1735497859931,8.53e-05,93919.0,93917.0,0.013]
[1735497862167,8.53e-05,93919.0,93918.0,0.10398632]
[1735497863361,8.53e-05,93919.0,93918.0,0.11698632]
[1735497871022,8.53e-05,93919.0,93918.0,0.21698632]
[1735497871381,8.53e-05,93919.0,93918.0,0.33608201]
[1735497874220,8.53e-05,93919.0,93918.0,0.48118201]
[1735497875283,8.53e-05,93919.0,93918.0,0.47218201]
[1735497875812,8.53e-05,93919.0,93918.0,0.37718201]
[1735497876009,8.53e-05,93919.0,93918.0,0.38018201]
[1735497876578,8.53e-05,93919.0,93918.0,0.24068632]
[1735497876774,8.53e-05,93919.0,93918.0,0.11798632]
[1735497883965,8.53e-05,93919.0,93918.0,0.09893463]
[1735497891486,8.53e-05,93919.0,93918.0,0.09910523]
[1735497904022,0.13107415,93928.0,93918.0,0.09910523]
[1735497904223,0.13107415,93928.0,93919.0,0.02818758]
[1735497904393,0.13107415,93928.0,93920.0,0.10398632]
[1735497906809,0.13107415,93928.0,93920.0,0.10798632]
[1735497906966,0.13107415,93928.0,93920.0,0.11698632]
[1735497908129,0.13107415,93928.0,93920.0,0.013]
[1735497909012,3.71623506,93927.0,93920.0,0.013]
[1735497909229,0.0792,93925.0,93920.0,0.013]
[1735497909444,1.703,93924.0,93920.0,0.013]
[1735497909849,1.027,93924.0,93920.0,0.009]
[1735497910079,0.997,93924.0,93920.0,0.009]
[1735497910325,1.024,93924.0,93918.0,0.0001706]
[1735497910824,1.02390677,93924.0,93918.0,0.0001706]
[1735497911069,1.071,93924.0,93920.0,0.004]
[1735497911338,1.36870256,93923.0,93920.0,0.004]
[1735497911565,1.346,93922.0,93920.0,0.004]
[1735497911801,0.995,93921.0,93920.0,0.004]
[1735497912306,0.01670256,93923.0,93918.0,0.0001706]
[1735497912520,0.222,93922.0,93918.0,0.0001706]
[1735497913009,0.222,93922.0,93918.0,0.0051706]
[1735497913272,0.222,93922.0,93918.0,0.0001706]
[1735497913471,0.222,93922.0,93920.0,0.001]
[1735497913988,0.222,93922.0,93918.0,0.0001706]
[1735497914234,0.222,93922.0,93918.0,0.0061706]
[1735497914470,2.025,93924.0,93918.0,0.0061706]
[1735497914693,2.532,93924.0,93918.0,0.0061706]
[1735497914930,8.53e-05,93923.0,93918.0,0.0061706]
[1735497915252,2.288,93922.0,93918.0,0.0061706]
[1735497915451,2.288,93922.0,93918.0,0.0051706]
[1735497915721,2.288,93922.0,93920.0,0.001]
[1735497915983,2.288,93922.0,93920.0,0.006]
[1735497916241,2.288,93922.0,93920.0,0.005]
[1735497916493,2.288,93922.0,93918.0,0.0011706]
[1735497916758,2.288,93922.0,93918.0,0.0061706]
[1735497917043,2.288,93922.0,93918.0,0.0051706]
[1735497917222,2.288,93922.0,93918.0,0.0001706]
[1735497917452,2.3047019,93922.0,93920.0,0.006]
[1735497917657,3.615964,93921.0,93920.0,0.006]
[1735497918467,3.615964,93921.0,93920.0,0.005]
[1735497918668,2.421,93921.0,93920.0,0.005]
[1735497918873,2.421,93921.0,93918.0,0.0011706]
[1735497919280,2.421,93921.0,93918.0,0.0061706]
[1735497919485,2.421,93921.0,93918.0,0.0001706]
[1735497919682,2.421,93921.0,93920.0,0.006]
[1735497920009,2.421,93921.0,93920.0,0.001]
[1735497920372,2.421,93921.0,93918.0,0.00582941]
[1735497920834,1.742,93921.0,93918.0,0.00582941]
[1735497921011,1.745,93921.0,93918.0,0.00582941]
[1735497921227,1.745,93921.0,93912.0,0.0001706]
[1735497922847,1.745,93921.0,93918.0,0.001]
[1735497922986,1.745,93921.0,93920.0,0.006]
[1735497923190,1.745,93921.0,93912.0,0.0001706]
[1735497923391,1.745,93921.0,93913.0,0.01255412]
[1735497923643,1.745,93921.0,93912.0,0.0071706]
[1735497923822,3.74709271,93922.0,93912.0,0.0011706]
[1735497924022,3.615964,93921.0,93912.0,0.0011706]
[1735497924250,3.615964,93921.0,93920.0,0.006]
[1735497924407,3.615964,93921.0,93912.0,0.0001706]
[1735497924807,3.615964,93921.0,93912.0,0.0061706]
[1735497926211,3.615964,93921.0,93913.0,0.001]
[1735497926960,0.01670207,93920.0,93918.0,0.0001706]
[1735497927254,3.615964,93919.0,93918.0,0.0001706]
[1735497928468,3.615964,93919.0,93918.0,0.0071706]
[1735497929264,3.615964,93919.0,93918.0,0.0081706]
[1735497929970,3.615964,93919.0,93918.0,0.0071706]
[1735497930184,3.615964,93919.0,93918.0,0.0081706]
[1735497934345,3.615964,93922.0,93918.0,0.0081706]
[1735497935301,3.615964,93922.0,93918.0,0.0011706]
[1735497935984,3.615964,93922.0,93918.0,0.0051706]
[1735497938716,3.6326666,93922.0,93918.0,0.0051706]
[1735497938997,3.615964,93921.0,93918.0,0.0051706]
[1735497940192,3.615964,93921.0,93918.0,0.0061706]
[1735497940604,3.615964,93921.0,93918.0,0.0011706]
[1735497940994,3.615964,93921.0,93918.0,0.0071706]
[1735497946096,3.71150907,93921.0,93918.0,0.0071706]
[1735497946253,3.615964,93920.0,93918.0,0.0071706]
[1735497947342,3.63266664,93920.0,93918.0,0.0011706]
[1735497947560,3.615964,93919.0,93918.0,0.0011706]
[1735497948176,3.615964,93919.0,93918.0,0.0071706]
[1735497948327,3.615964,93919.0,93918.0,0.0011706]
[1735497948533,3.615964,93919.0,93918.0,0.0001706]
[1735497948715,3.615964,93920.0,93918.0,0.0071706]
[1735497949050,3.615964,93920.0,93918.0,0.0081706]
[1735497949413,3.615964,93920.0,93918.0,0.0071706]
[1735497949815,3.615964,93920.0,93918.0,0.0081706]
[1735497950441,3.71150907,93920.0,93918.0,0.0011706]
[1735497950613,3.615964,93919.0,93918.0,0.0071706]
[1735497951236,3.615964,93919.0,93918.0,0.0061706]
[1735497951488,3.63266666,93919.0,93918.0,0.0001706]
[1735497951917,3.63266666,93919.0,93918.0,0.0071706]
[1735497953074,3.63266666,93919.0,93918.0,0.0081706]
[1735497954153,3.615964,93919.0,93918.0,0.0081706]
[1735497954366,3.615964,93919.0,93918.0,0.0071706]
[1735497954811,3.615964,93919.0,93918.0,0.0081706]
[1735497954970,3.71150907,93919.0,93918.0,0.0081706]
[1735497956137,3.75928916,93919.0,93918.0,0.0081706]
[1735497957385,3.77599182,93919.0,93918.0,0.0081706]
[1735497958464,3.75928916,93919.0,93918.0,0.0081706]
[1735497958799,3.615964,93919.0,93918.0,0.0081706]
[1735497959003,3.615964,93920.0,93918.0,0.0081706]
[1735497961258,0.14355775,93919.0,93918.0,0.0011706]
[1735497961467,3.75952175,93919.0,93918.0,0.0011706]
[1735497961668,3.75952175,93919.0,93918.0,0.0001706]
[1735497961867,3.75952175,93919.0,93918.0,0.0061706]
[1735497962069,3.75952175,93919.0,93918.0,0.0001706]
[1735497962288,3.75952175,93919.0,93918.0,0.0011706]
[1735497962498,3.75952175,93919.0,93918.0,0.0081706]
[1735497962703,3.75952175,93919.0,93918.0,0.0071706]
[1735497963111,3.75952175,93919.0,93918.0,0.0081706]
[1735497963397,3.80673896,93919.0,93918.0,0.0011706]
[1735497963813,3.80673896,93919.0,93918.0,0.0061706]
[1735497964670,1.627,93919.0,93918.0,0.0061706]
[1735497965287,1.627,93919.0,93918.0,0.0051706]
[1735497965876,3.615964,93920.0,93918.0,0.0051706]
[1735497966306,3.201,93920.0,93918.0,0.0051706]
[1735497966509,3.615964,93920.0,93918.0,0.0051706]
[1735497966715,0.19138004,93919.0,93918.0,0.0051706]
[1735497966881,3.80734404,93919.0,93918.0,0.0051706]
[1735497967141,3.80734404,93919.0,93918.0,0.0001706]
[1735497967434,3.8240467,93919.0,93918.0,0.0071706]
[1735497968017,3.63266666,93919.0,93918.0,0.0071706]
[1735497968397,3.615964,93919.0,93918.0,0.0071706]
[1735497968596,3.615964,93920.0,93918.0,0.0001706]
[1735497968800,3.616964,93920.0,93918.0,0.0001706]
[1735497968979,3.615964,93919.0,93918.0,0.0091706]
[1735497969639,3.615964,93920.0,93918.0,0.0091706]
[1735497969844,3.615964,93920.0,93918.0,0.0111706]
[1735497970025,0.19138004,93919.0,93918.0,0.0111706]
[1735497970224,3.80734404,93919.0,93918.0,0.0111706]
[1735497970630,3.80734404,93919.0,93918.0,0.0091706]
[1735497971476,3.63266666,93919.0,93918.0,0.0091706]
[1735497971691,1.79870266,93919.0,93918.0,0.0091706]
[1735497971821,1.79870266,93919.0,93918.0,0.0001706]
[1735497972047,1.79870266,93919.0,93918.0,0.0081706]
[1735497972451,1.79870266,93919.0,93918.0,0.0001706]
[1735497972688,1.79870266,93919.0,93918.0,0.0111706]
[1735497973429,1.79870266,93919.0,93918.0,0.0091706]
[1735497973589,1.94233292,93919.0,93918.0,0.0111706]
[1735497974011,1.92563026,93919.0,93918.0,0.0111706]
[1735497980473,1.92557821,93919.0,93918.0,0.0111706]
[1735497981383,1.72675566,93919.0,93918.0,0.0111706]
[1735497982629,1.67889009,93919.0,93918.0,0.0111706]
[1735497983567,1.67889009,93919.0,93918.0,0.0902706]
[1735497983922,1.67889009,93919.0,93918.0,0.10421472]
[1735497984139,1.66218743,93919.0,93918.0,0.10421472]
[1735497987413,1.67889009,93919.0,93918.0,0.10421472]
[1735497988690,1.67897539,93919.0,93918.0,0.10421472]
[1735497990072,1.5832107,93919.0,93918.0,0.10421472]
[1735497991637,1.5832107,93919.0,93918.0,0.0111706]
[1735497994136,1.56650804,93919.0,93918.0,0.0111706]
[1735497994783,1.7050853,93919.0,93918.0,0.0111706]
[1735498001278,1.89659231,93919.0,93918.0,0.0111706]
[1735498001485,1.91329497,93919.0,93918.0,0.0111706]
[1735498004245,1.89659231,93919.0,93918.0,0.0111706]
[1735498004445,0.19159231,93919.0,93918.0,0.23845692]
[1735498004594,0.19159231,93919.0,93918.0,0.27231967]
[1735498005568,0.19159231,93919.0,93918.0,0.26131967]
[1735498005714,0.19159231,93919.0,93918.0,0.22745692]
[1735498005926,0.19159231,93919.0,93918.0,0.23945692]
[1735498006140,0.19159231,93919.0,93918.0,0.23045692]
[1735498006338,8.53e-05,93919.0,93918.0,0.23045692]
[1735498006525,8.53e-05,93919.0,93918.0,0.23645692]
[1735498006724,8.53e-05,93919.0,93918.0,0.26011967]
[1735498007140,0.08606486,93928.0,93918.0,0.26011967]
[1735498007346,0.01670098,93924.0,93919.0,0.10398632]
[1735498008153,0.01670098,93924.0,93920.0,0.0771]
[1735498008350,0.01670098,93924.0,93921.0,0.10398632]
[1735498008532,0.01670098,93924.0,93922.0,0.02601197]
[1735498008733,0.01670098,93924.0,93923.0,0.10398632]
[1735498011275,0.01670098,93924.0,93923.0,0.18108632]
[1735498011638,0.01670098,93924.0,93923.0,0.19008632]
[1735498012541,0.01670098,93924.0,93923.0,0.19408632]
[1735498012740,0.01670098,93924.0,93923.0,0.22309948]
[1735498014178,0.08606486,93933.0,93923.0,0.22309948]
[1735498014576,8.53e-05,93936.0,93924.0,0.1462]
[1735498014911,8.53e-05,93936.0,93927.0,0.0771]
[1735498015039,8.53e-05,93936.0,93928.0,0.15018632]
[1735498015238,8.53e-05,93936.0,93930.0,0.0771]
[1735498015449,8.53e-05,93936.0,93931.0,0.10398632]
[1735498015657,8.53e-05,93936.0,93932.0,0.0771]
[1735498015859,8.53e-05,93936.0,93933.0,0.10398632]
[1735498016108,8.53e-05,93936.0,93934.0,0.0771]
[1735498016354,8.53e-05,93936.0,93935.0,0.13963695]
[1735498017555,0.09711178,93964.0,93935.0,0.13963695]
[1735498017772,0.08606486,93945.0,93935.0,0.13963695]
[1735498017919,0.18882908,93945.0,93935.0,0.13963695]
[1735498018126,0.17212972,93945.0,93935.0,0.13963695]
[1735498018300,0.17212972,93945.0,93936.0,0.01562811]
[1735498018489,0.0166992,93944.0,93937.0,0.10398632]
[1735498019768,0.0166992,93944.0,93937.0,0.10898632]
[1735498022792,0.0166992,93944.0,93937.0,0.005]
[1735498024142,8.53e-05,93944.0,93937.0,0.005]
[1735498027378,0.01669936,93943.0,93937.0,0.005]
[1735498028723,0.01669936,93943.0,93934.0,0.0771]
[1735498028973,0.01669936,93943.0,93937.0,0.006]
[1735498029169,0.01669936,93943.0,93937.0,0.007]
[1735498030563,2.493,93942.0,93937.0,0.007]
[1735498030950,2.251,93942.0,93937.0,0.006]
[1735498031160,2.247,93942.0,93937.0,0.006]
[1735498031357,2.158,93941.0,93937.0,0.006]
[1735498031580,2.073,93940.0,93937.0,0.006]
[1735498031784,2.254,93942.0,93937.0,0.006]
[1735498032524,2.254,93942.0,93937.0,0.001]
[1735498033207,2.254,93942.0,93937.0,0.007]
[1735498034011,2.095,93942.0,93937.0,0.007]
[1735498034204,2.204,93942.0,93937.0,0.007]
[1735498034382,2.436,93943.0,93937.0,0.007]
[1735498034593,0.08606486,93939.0,93929.0,0.06616304]
[1735498034796,0.467,93938.0,93930.0,0.11178632]
[1735498035265,0.452,93938.0,93930.0,0.11178632]
[1735498035461,0.464,93938.0,93930.0,0.11178632]
[1735498035668,0.08606486,93939.0,93937.0,0.001]
[1735498035863,0.08606486,93939.0,93937.0,0.007]
[1735498036305,0.08606486,93939.0,93937.0,0.001]
[1735498036533,0.08606486,93939.0,93937.0,0.0011706]
[1735498037402,0.1027649,93939.0,93937.0,0.0011706]
[1735498037720,0.1027649,93939.0,93937.0,0.0001706]
[1735498037900,0.01670004,93939.0,93937.0,0.0001706]
[1735498039051,0.01670004,93939.0,93937.0,0.0011706]
[1735498039270,0.01670004,93939.0,93937.0,0.0081706]
[1735498041757,0.01670004,93939.0,93937.0,0.0080136]
[1735498043406,0.01670004,93939.0,93937.0,0.0070136]
[1735498043606,0.01670004,93939.0,93937.0,1.36e-05]
[1735498043914,0.01670004,93939.0,93937.0,0.0090136]
[1735498044109,8.53e-05,93944.0,93937.0,0.0090136]
[1735498044325,0.703,93943.0,93937.0,0.0090136]
[1735498044700,0.347,93943.0,93937.0,0.0090136]
[1735498044894,0.647,93943.0,93937.0,0.0110136]
[1735498045413,0.647,93943.0,93937.0,1.36e-05]
[1735498045641,0.647,93943.0,93937.0,0.0100136]
[1735498046461,0.647,93943.0,93937.0,0.02219359]
[1735498047447,0.01669979,93942.0,93937.0,0.02219359]
[1735498047652,0.687,93941.0,93937.0,0.02219359]
[1735498047862,0.609,93941.0,93937.0,0.02219359]
[1735498048062,0.529,93940.0,93937.0,0.02219359]